fUSD/lending_fUSD_20250602
["ID","MTS","AMOUNT","RATE_DAILY","PERIOD"]
[363767839,1748866248945,-422.54706099,0.00019178,2]
[363767841,1748866248955,-425.81072707,0.00019178,2]
[363767843,1748866248963,-448.3,0.00019178,2]
[363767844,1748866248972,-420.0,0.00019178,2]
[363767847,1748866248982,-423.12706021,0.00019178,2]
[363767849,1748866248993,-420.0,0.00019178,2]
[363767851,1748866249004,-420.0,0.00019178,2]
[363767853,1748866249014,-420.0,0.00019178,2]
[363767854,1748866249023,-441.47976117,0.00019178,2]
[363767856,1748866249034,-420.0,0.00019178,2]
[363767859,1748866249048,-420.0,0.00019178,2]
[363767861,1748866249061,-420.0,0.00019178,2]
[363767863,1748866249071,-420.0,0.00019178,2]
[363767864,1748866249081,-189.47662545,0.00019178,2]
[363767867,1748866249091,-420.0,0.00019178,2]
[363767869,1748866249102,-422.79411615,0.00019178,2]
[363767871,1748866249112,-425.71478884,0.00019178,2]
[363767873,1748866249123,-428.01521396,0.00019178,2]
[363767875,1748866249133,-420.0,0.00019178,2]
[363767876,1748866249143,-814.86,0.00019178,2]
[363767878,1748866249153,-420.0,0.00019178,2]
[363767880,1748866249163,-420.0,0.00019178,2]
[363767882,1748866249174,-420.0,0.00019178,2]
[363767884,1748866249185,-424.59572033,0.00019178,2]
[363767886,1748866249194,-420.0,0.00019178,2]
[363767888,1748866249204,-420.0,0.00019178,2]
[363767890,1748866249215,-420.0,0.00019178,2]
[363767892,1748866249225,-726.71,0.00019178,2]
[363767894,1748866249235,-420.0,0.00019178,2]
[363767896,1748866249245,-420.0,0.00019178,2]
[363767898,1748866249255,-420.0,0.00019178,2]
[363767900,1748866249265,-566.75319333,0.00019178,2]
[363767902,1748866249276,-420.0,0.00019178,2]
[363767904,1748866249286,-1615.79,0.00019178,2]
[363767906,1748866249296,-420.0,0.00019178,2]
[363767908,1748866249309,-423.27313958,0.00019178,2]
[363767911,1748866249319,-420.0,0.00019178,2]
[363767912,1748866249329,-420.0,0.00019178,2]
[363767914,1748866249340,-430.57037833,0.00019178,2]
[363767915,1748866249351,-570.67,0.00019178,2]
[363767916,1748866249361,-432.86469394,0.00019178,2]
[363767917,1748866249372,-420.0,0.00019178,2]
[363767918,1748866249382,-422.44317901,0.00019178,2]
[363767919,1748866249392,-1196.54,0.00019178,2]
[363767920,1748866249402,-421.11056006,0.00019178,2]
[363767922,1748866249411,-421.38829573,0.00019178,2]
[363767924,1748866249421,-420.0,0.00019178,2]
[363767926,1748866249431,-420.0,0.00019178,2]
[363767928,1748866249441,-420.0,0.00019178,2]
[363767930,1748866249451,-422.95794919,0.00019178,2]
[363767932,1748866249460,-469.02,0.00019178,2]
[363767934,1748866249471,-151.0,0.00019178,2]
[363767935,1748866249479,-169.47,0.00019178,2]
[363767938,1748866249490,-150.0,0.000192,4]
[363767940,1748866249501,-2030.296672,0.00019221,2]
[363767942,1748866249512,-150.0,0.00019231,4]
[363767944,1748866249524,-6264.1693462,0.00019261,2]
[363767945,1748866249534,-4481.58313828,0.00019261,2]
[363767947,1748866249544,-4084.47723167,0.00019276,2]
[363767949,1748866249554,-2105.41764886,0.00019276,2]
[363767951,1748866249570,-486.71878704,0.00019314,2]
[363767953,1748866249581,-589.15302806,0.00019314,2]
[363767955,1748866249593,-500.0,0.00019314,2]
[363767958,1748866249603,-500.0,0.00019314,2]
[363767959,1748866249614,-500.0,0.00019314,2]
[363767976,1748866249778,-248.98894554,0.00019314,2]
[363767978,1748866249789,-557.21446992,0.00019314,2]
[363767981,1748866249800,-500.0,0.00019314,2]
[363767983,1748866249814,-557.21446992,0.00019314,2]
[363767984,1748866249824,-557.21446992,0.00019314,2]
[363767986,1748866249834,-557.21446992,0.00019314,2]
[363767989,1748866249844,-557.21446992,0.00019314,2]
[363767991,1748866249855,-557.21446992,0.00019314,2]
[363767993,1748866249866,-557.21446992,0.00019314,2]
[363767995,1748866249877,-557.21446992,0.00019314,2]
[363767997,1748866249887,-557.21446992,0.00019314,2]
[363767999,1748866249898,-557.21446992,0.00019314,2]
[363768000,1748866249909,-557.21446992,0.00019314,2]
[363768003,1748866249919,-557.21446992,0.00019314,2]
[363768005,1748866249930,-557.21446992,0.00019314,2]
[363768007,1748866249940,-557.21446992,0.00019314,2]
[363768009,1748866249950,-557.21446992,0.00019314,2]
[363768011,1748866249960,-557.21446992,0.00019314,2]
[363768012,1748866249969,-557.21446992,0.00019314,2]
[363768014,1748866249980,-557.21446992,0.00019314,2]
[363768015,1748866249989,-557.21446992,0.00019314,2]
[363768017,1748866249999,-557.21446992,0.00019314,2]
[363768018,1748866250008,-557.21446992,0.00019314,2]
[363768020,1748866250018,-557.21446992,0.00019314,2]
[363768021,1748866250027,-557.21446992,0.00019314,2]
[363768022,1748866250037,-557.21446992,0.00019314,2]
[363768024,1748866250047,-557.21446992,0.00019314,2]
[363768026,1748866250060,-557.21446992,0.00019314,2]
[363768027,1748866250070,-557.21446992,0.00019314,2]
[363768029,1748866250080,-557.21446992,0.00019314,2]
[363768030,1748866250091,-557.21446992,0.00019314,2]
[363768032,1748866250101,-557.21446992,0.00019314,2]
[363768033,1748866250111,-557.21446992,0.00019314,2]
[363768035,1748866250121,-557.21446992,0.00019314,2]
[363768037,1748866250132,-557.21446992,0.00019314,2]
[363768038,1748866250143,-557.21446992,0.00019314,2]
[363768040,1748866250152,-557.21446992,0.00019314,2]
[363768041,1748866250162,-557.21446992,0.00019314,2]
[363768043,1748866250172,-557.21446992,0.00019314,2]
[363768044,1748866250181,-557.21446992,0.00019314,2]
[363768046,1748866250191,-557.21446992,0.00019314,2]
[363768047,1748866250200,-557.21446992,0.00019314,2]
[363768049,1748866250210,-557.21446992,0.00019314,2]
[363768050,1748866250219,-557.21446992,0.00019314,2]
[363768052,1748866250228,-557.21446992,0.00019314,2]
[363768054,1748866250238,-557.21446992,0.00019314,2]
[363768055,1748866250247,-557.21446992,0.00019314,2]
[363768057,1748866250257,-557.21446992,0.00019314,2]
[363768058,1748866250266,-557.21446992,0.00019314,2]
[363768060,1748866250276,-596.71102379,0.00019314,2]
[363768062,1748866250285,-596.71102379,0.00019314,2]
[363768063,1748866250295,-471.45958405,0.00019314,2]
[363768065,1748866250304,-596.71102379,0.00019314,2]
[363768067,1748866250316,-596.71102379,0.00019314,2]
[363768069,1748866250327,-596.71102379,0.00019314,2]
[363768070,1748866250338,-596.71102379,0.00019314,2]
[363768072,1748866250348,-596.71102379,0.00019314,2]
[363768073,1748866250357,-596.71102379,0.00019314,2]
[363768075,1748866250367,-596.71102379,0.00019314,2]
[363768077,1748866250378,-596.71102379,0.00019314,2]
[363768078,1748866250387,-596.71102379,0.00019314,2]
[363768080,1748866250397,-596.71102379,0.00019314,2]
[363768082,1748866250406,-596.71102379,0.00019314,2]
[363768083,1748866250415,-596.71102379,0.00019314,2]
[363768085,1748866250425,-596.71102379,0.00019314,2]
[363768086,1748866250435,-596.71102379,0.00019314,2]
[363768088,1748866250444,-596.71102379,0.00019314,2]
[363768090,1748866250454,-596.71102379,0.00019314,2]
[363768091,1748866250463,-596.71102379,0.00019314,2]
[363768093,1748866250473,-596.71102379,0.00019314,2]
[363768095,1748866250482,-596.71102379,0.00019314,2]
[363768096,1748866250491,-596.71102379,0.00019314,2]
[363768098,1748866250500,-596.71102379,0.00019314,2]
[363768099,1748866250510,-596.71102379,0.00019314,2]
[363768101,1748866250520,-596.71102379,0.00019314,2]
[363768103,1748866250531,-596.71102379,0.00019314,2]
[363768104,1748866250541,-596.71102379,0.00019314,2]
[363768106,1748866250551,-596.71102379,0.00019314,2]
[363768108,1748866250561,-586.05546978,0.00019314,2]
[363768109,1748866250571,-586.05546978,0.00019314,2]
[363768111,1748866250581,-586.05546978,0.00019314,2]
[363768112,1748866250590,-586.05546978,0.00019314,2]
[363768114,1748866250600,-586.05546978,0.00019314,2]
[363768116,1748866250609,-586.05546978,0.00019314,2]
[363768117,1748866250619,-586.05546978,0.00019314,2]
[363768119,1748866250628,-586.05546978,0.00019314,2]
[363768121,1748866250638,-586.05546978,0.00019314,2]
[363768122,1748866250647,-586.05546978,0.00019314,2]
[363768124,1748866250657,-586.05546978,0.00019314,2]
[363768125,1748866250667,-586.05546978,0.00019314,2]
[363768127,1748866250677,-586.05546978,0.00019314,2]
[363768129,1748866250687,-586.05546978,0.00019314,2]
[363768130,1748866250697,-500.0,0.00019314,2]
[363768132,1748866250707,-500.0,0.00019314,2]
[363768134,1748866250716,-500.0,0.00019314,2]
[363768135,1748866250726,-250.54213618,0.00019315,2]
[363768137,1748866250737,-420.0,0.00019315,2]
[363768139,1748866250747,-420.0,0.00019315,2]
[363768140,1748866250756,-406.8305097,0.00019315,2]
[363768142,1748866250766,-420.0,0.00019315,2]
[363768144,1748866250775,-420.0,0.00019315,2]
[363768146,1748866250785,-420.0,0.00019315,2]
[363768148,1748866250795,-420.0,0.00019315,2]
[363768150,1748866250805,-421.14584477,0.00019315,2]
[363768151,1748866250815,-429.55165109,0.00019315,2]
[363768152,1748866250824,-420.0,0.00019315,2]
[363768153,1748866250834,-427.43924171,0.00019315,2]
[363768154,1748866250843,-420.0,0.00019315,2]
[363768155,1748866250852,-420.0,0.00019315,2]
[363768156,1748866250861,-449.24,0.00019315,2]
[363768157,1748866250870,-515.9,0.00019315,2]
[363768158,1748866250879,-424.47540473,0.00019315,2]
[363768159,1748866250888,-460.28,0.00019315,2]
[363768160,1748866250898,-420.0,0.00019315,2]
[363768161,1748866250908,-428.1701171,0.00019315,2]
[363768162,1748866250918,-428.08536614,0.00019315,2]
[363768163,1748866250927,-420.0,0.00019315,2]
[363768164,1748866250936,-420.0,0.00019315,2]
[363768165,1748866250945,-426.10183833,0.00019315,2]
[363768166,1748866250954,-420.0,0.00019315,2]
[363768167,1748866250963,-420.0,0.00019315,2]
[363768169,1748866250972,-441.80299209,0.00019315,2]
[363768170,1748866250981,-420.0,0.00019315,2]
[363768172,1748866250991,-420.0,0.00019315,2]
[363768174,1748866251000,-420.0,0.00019315,2]
[363768176,1748866251010,-420.0,0.00019315,2]
[363768178,1748866251020,-431.79245659,0.00019315,2]
[363768180,1748866251029,-426.14355969,0.00019315,2]
[363768182,1748866251038,-420.0,0.00019315,2]
[363768184,1748866251050,-226.76,0.00019315,2]
[363768186,1748866251061,-420.0,0.00019315,2]
[363768188,1748866251070,-420.0,0.00019315,2]
[363768190,1748866251080,-420.0,0.00019315,2]
[363768192,1748866251090,-420.0,0.00019315,2]
[363768194,1748866251100,-423.42282223,0.00019315,2]
[363768196,1748866251110,-420.0,0.00019315,2]
[363768198,1748866251120,-420.0,0.00019315,2]
[363768200,1748866251130,-420.0,0.00019315,2]
[363768202,1748866251139,-423.50888103,0.00019315,2]
[363768204,1748866251149,-421.33856653,0.00019315,2]
[363768206,1748866251158,-425.07514845,0.00019315,2]
[363768208,1748866251167,-420.0,0.00019315,2]
[363768210,1748866251177,-409.27263968,0.00019315,2]
[363768212,1748866251186,-420.0,0.00019315,2]
[363768214,1748866251196,-421.40045513,0.00019315,2]
[363768215,1748866251204,-420.0,0.00019315,2]
[363768217,1748866251214,-159.70109221,0.00019315,2]
[363768219,1748866251224,-420.0,0.00019315,2]
[363768221,1748866251234,-428.03077504,0.00019315,2]
[363768223,1748866251244,-420.85164436,0.00019315,2]
[363768225,1748866251254,-441.37999348,0.00019315,2]
[363768228,1748866251266,-420.0,0.00019315,2]
[363768230,1748866251276,-296.72524755,0.00019315,2]
[363768232,1748866251286,-420.0,0.00019315,2]
[363768234,1748866251295,-420.0,0.00019315,2]
[363768236,1748866251305,-293.62669814,0.00019315,2]
[363768238,1748866251316,-420.0,0.00019315,2]
[363768240,1748866251326,-420.0,0.00019315,2]
[363768241,1748866251336,-420.0,0.00019315,2]
[363768244,1748866251346,-420.0,0.00019315,2]
[363768246,1748866251356,-431.53909899,0.00019315,2]
[363768247,1748866251365,-420.0,0.00019315,2]
[363768249,1748866251375,-504.34,0.00019315,2]
[363768251,1748866251384,-569.6,0.00019315,2]
[363768253,1748866251393,-420.0,0.00019315,2]
[363768255,1748866251404,-420.0,0.00019315,2]
[363768257,1748866251415,-425.31365642,0.00019315,2]
[363768259,1748866251424,-424.12043158,0.00019315,2]
[363768261,1748866251434,-425.17316556,0.00019315,2]
[363768263,1748866251444,-420.0,0.00019315,2]
[363768265,1748866251453,-420.0,0.00019315,2]
[363768267,1748866251462,-420.0,0.00019315,2]
[363768269,1748866251470,-420.0,0.00019315,2]
[363768271,1748866251479,-420.0,0.00019315,2]
[363768273,1748866251488,-430.47384128,0.00019315,2]
[363768275,1748866251497,-420.0,0.00019315,2]
[363768277,1748866251506,-420.0,0.00019315,2]
[363768278,1748866251514,-420.0,0.00019315,2]
[363768280,1748866251524,-420.0,0.00019315,2]
[363768282,1748866251533,-420.0,0.00019315,2]
[363768284,1748866251543,-420.0,0.00019315,2]
[363768286,1748866251554,-451.69,0.00019315,2]
[363768288,1748866251565,-420.0,0.00019315,2]
[363768290,1748866251574,-420.0,0.00019315,2]
[363768292,1748866251584,-420.0,0.00019315,2]
[363768294,1748866251594,-425.25208754,0.00019315,2]
[363768296,1748866251603,-527.6300672,0.00019315,2]
[363768298,1748866251613,-420.0,0.00019315,2]
[363768300,1748866251624,-420.0,0.00019315,2]
[363768302,1748866251633,-556.87,0.00019315,2]
[363768304,1748866251643,-420.0,0.00019315,2]
[363768306,1748866251653,-500.12613955,0.00019315,2]
[363768308,1748866251663,-420.0,0.00019315,2]
[363768310,1748866251672,-420.0,0.00019315,2]
[363768312,1748866251682,-445.67409525,0.00019315,2]
[363768314,1748866251691,-219.31131536,0.00019315,2]
[363768316,1748866251700,-420.0,0.00019315,2]
[363768318,1748866251709,-420.0,0.00019315,2]
[363768320,1748866251719,-420.0,0.00019315,2]
[363768322,1748866251729,-420.0,0.00019315,2]
[363768323,1748866251738,-420.0,0.00019315,2]
[363768325,1748866251748,-420.0,0.00019315,2]
[363768327,1748866251757,-420.0,0.00019315,2]
[363768329,1748866251767,-420.0,0.00019315,2]
[363768331,1748866251776,-420.0,0.00019315,2]
[363768333,1748866251786,-420.0,0.00019315,2]
[363768335,1748866251795,-420.0,0.00019315,2]
[363768337,1748866251805,-420.0,0.00019315,2]
[363768339,1748866251816,-421.03905839,0.00019315,2]
[363768341,1748866251825,-420.0,0.00019315,2]
[363768343,1748866251835,-420.0,0.00019315,2]
[363768345,1748866251845,-420.0,0.00019315,2]
[363768347,1748866251855,-420.0,0.00019315,2]
[363768349,1748866251865,-420.0,0.00019315,2]
[363768351,1748866251875,-420.38054122,0.00019315,2]
[363768353,1748866251884,-540.36140526,0.00019315,2]
[363768355,1748866251894,-420.0,0.00019315,2]
[363768356,1748866251904,-424.3869953,0.00019315,2]
[363768358,1748866251914,-420.0,0.00019315,2]
[363768360,1748866251924,-420.0,0.00019315,2]
[363768362,1748866251933,-422.61150782,0.00019315,2]
[363768364,1748866251943,-420.0,0.00019315,2]
[363768366,1748866251953,-420.0,0.00019315,2]
[363768368,1748866251963,-420.0,0.00019315,2]
[363768370,1748866251973,-420.0,0.00019315,2]
[363768372,1748866251983,-420.0,0.00019315,2]
[363768374,1748866251993,-420.0,0.00019315,2]
[363768376,1748866252003,-420.0,0.00019315,2]
[363768378,1748866252012,-432.71588125,0.00019315,2]
[363768380,1748866252021,-430.59638299,0.00019315,2]
[363768382,1748866252031,-420.0,0.00019315,2]
[363768384,1748866252041,-420.0,0.00019315,2]
[363768386,1748866252053,-420.0,0.00019315,2]
[363768388,1748866252064,-420.0,0.00019315,2]
[363768390,1748866252074,-429.26737419,0.00019315,2]
[363768392,1748866252084,-420.0,0.00019315,2]
[363768394,1748866252093,-420.0,0.00019315,2]
[363768396,1748866252103,-420.0,0.00019315,2]
[363768398,1748866252113,-420.0,0.00019315,2]
[363768400,1748866252123,-475.20575744,0.00019315,2]
[363768402,1748866252132,-420.0,0.00019315,2]
[363768404,1748866252142,-420.0,0.00019315,2]
[363768405,1748866252151,-420.0,0.00019315,2]
[363768407,1748866252162,-420.0,0.00019315,2]
[363768409,1748866252171,-420.0,0.00019315,2]
[363768411,1748866252181,-420.0,0.00019315,2]
[363768413,1748866252190,-420.0,0.00019315,2]
[363768415,1748866252199,-420.0,0.00019315,2]
[363768418,1748866252212,-420.0,0.00019315,2]
[363768420,1748866252221,-420.0,0.00019315,2]
[363768421,1748866252231,-420.0,0.00019315,2]
[363768423,1748866252240,-253.8,0.00019315,2]
[363768425,1748866252250,-420.0,0.00019315,2]
[363768427,1748866252259,-206.95,0.00019315,2]
[363768429,1748866252268,-420.0,0.00019315,2]
[363768431,1748866252278,-420.0,0.00019315,2]
[363768433,1748866252287,-420.0,0.00019315,2]
[363768435,1748866252296,-433.41875609,0.00019315,2]
[363768437,1748866252305,-507.14551392,0.00019315,2]
[363768439,1748866252316,-263.3586639,0.00019315,2]
[363768441,1748866252326,-420.0,0.00019315,2]
[363768443,1748866252335,-440.54783138,0.00019315,2]
[363768445,1748866252344,-420.0,0.00019315,2]
[363768447,1748866252353,-420.0,0.00019315,2]
[363768449,1748866252362,-461.04,0.00019315,2]
[363768451,1748866252371,-423.9090186,0.00019315,2]
[363768453,1748866252380,-429.84674207,0.00019315,2]
[363768455,1748866252389,-505.54122386,0.00019315,2]
[363768457,1748866252398,-332.32,0.00019315,2]
[363768458,1748866252408,-420.0,0.00019315,2]
[363768461,1748866252419,-420.0,0.00019315,2]
[363768462,1748866252428,-420.0,0.00019315,2]
[363768464,1748866252437,-420.0,0.00019315,2]
[363768466,1748866252446,-420.0,0.00019315,2]
[363768468,1748866252455,-430.43565143,0.00019315,2]
[363768470,1748866252465,-408.9877906,0.00019315,2]
[363768472,1748866252474,-420.0,0.00019315,2]
[363768487,1748866252609,-429.28368473,0.00019315,2]
[363768490,1748866252635,-420.0,0.00019315,2]
[363768492,1748866252645,-420.0,0.00019315,2]
[363768493,1748866252655,-510.26175678,0.00019315,2]
[363768495,1748866252664,-539.6137254,0.00019315,2]
[363768497,1748866252674,-420.0,0.00019315,2]
[363768499,1748866252684,-522.4782467,0.00019315,2]
[363768501,1748866252694,-446.11050118,0.00019315,2]
[363768503,1748866252703,-420.0,0.00019315,2]
[363768505,1748866252714,-429.74935038,0.00019315,2]
[363768507,1748866252723,-420.0,0.00019315,2]
[363768509,1748866252733,-420.0,0.00019315,2]
[363768511,1748866252743,-423.37579939,0.00019315,2]
[363768513,1748866252752,-420.0,0.00019315,2]
[363768515,1748866252763,-354.77582395,0.00019315,2]
[363768517,1748866252772,-420.0,0.00019315,2]
[363768519,1748866252782,-421.87386035,0.00019315,2]
[363768521,1748866252792,-433.2595646,0.00019315,2]
[363768523,1748866252802,-420.0,0.00019315,2]
[363768525,1748866252813,-420.0,0.00019315,2]
[363768527,1748866252822,-532.22,0.00019315,2]
[363768529,1748866252832,-420.0,0.00019315,2]
[363768530,1748866252841,-420.0,0.00019315,2]
[363768531,1748866252851,-420.0,0.00019315,2]
[363768532,1748866252861,-265.35908816,0.00019315,2]
[363768533,1748866252870,-420.0,0.00019315,2]
[363768534,1748866252880,-420.0,0.00019315,2]
[363768535,1748866252890,-424.97538195,0.00019315,2]
[363768536,1748866252899,-420.0,0.00019315,2]
[363768537,1748866252908,-420.0,0.00019315,2]
[363768538,1748866252917,-420.0,0.00019315,2]
[363768539,1748866252927,-422.30863196,0.00019315,2]
[363768541,1748866252938,-420.0,0.00019315,2]
[363768543,1748866252948,-420.0,0.00019315,2]
[363768545,1748866252958,-490.02677065,0.00019315,2]
[363768547,1748866252970,-557.72,0.00019315,2]
[363768549,1748866252979,-420.0,0.00019315,2]
[363768551,1748866252988,-237.52600584,0.00019315,2]
[363768553,1748866252997,-420.0,0.00019315,2]
[363768555,1748866253007,-420.0,0.00019315,2]
[363768557,1748866253017,-420.0,0.00019315,2]
[363768559,1748866253027,-420.0,0.00019315,2]
[363768561,1748866253036,-413.08,0.00019315,2]
[363768563,1748866253046,-420.0,0.00019315,2]
[363768565,1748866253059,-420.0,0.00019315,2]
[363768567,1748866253068,-420.0,0.00019315,2]
[363768569,1748866253077,-420.0,0.00019315,2]
[363768571,1748866253086,-420.0,0.00019315,2]
[363768573,1748866253096,-420.0,0.00019315,2]
[363768575,1748866253106,-420.0,0.00019315,2]
[363768577,1748866253115,-433.90012067,0.00019315,2]
[363768578,1748866253126,-436.92528705,0.00019315,2]
[363768580,1748866253136,-420.0,0.00019315,2]
[363768582,1748866253145,-420.0,0.00019315,2]
[363768584,1748866253155,-420.0,0.00019315,2]
[363768586,1748866253164,-420.0,0.00019315,2]
[363768588,1748866253174,-420.0,0.00019315,2]
[363768590,1748866253183,-420.0,0.00019315,2]
[363768592,1748866253193,-459.22239579,0.00019315,2]
[363768594,1748866253202,-420.0,0.00019315,2]
[363768596,1748866253211,-420.0,0.00019315,2]
[363768598,1748866253221,-420.0,0.00019315,2]
[363768600,1748866253233,-420.0,0.00019315,2]
[363768602,1748866253243,-354.09,0.00019315,2]
[363768604,1748866253252,-420.0,0.00019315,2]
[363768606,1748866253262,-303.15296856,0.00019315,2]
[363768608,1748866253272,-541.78933125,0.00019315,2]
[363768610,1748866253282,-420.0,0.00019315,2]
[363768612,1748866253291,-420.0,0.00019315,2]
[363768614,1748866253300,-420.0,0.00019315,2]
[363768616,1748866253311,-420.0,0.00019315,2]
[363768618,1748866253320,-420.0,0.00019315,2]
[363768620,1748866253330,-420.0,0.00019315,2]
[363768622,1748866253339,-498.10545254,0.00019315,2]
[363768624,1748866253349,-296.5,0.00019315,2]
[363768626,1748866253358,-432.91680717,0.00019315,2]
[363768628,1748866253367,-420.0,0.00019315,2]
[363768630,1748866253377,-420.0,0.00019315,2]
[363768632,1748866253388,-420.0,0.00019315,2]
[363768634,1748866253398,-416.07455181,0.00019315,2]
[363768636,1748866253407,-420.0,0.00019315,2]
[363768638,1748866253418,-420.0,0.00019315,2]
[363768640,1748866253427,-420.0,0.00019315,2]
[363768642,1748866253436,-420.0,0.00019315,2]
[363768643,1748866253447,-420.0,0.00019315,2]
[363768646,1748866253457,-420.0,0.00019315,2]
[363768648,1748866253467,-342.87718354,0.00019315,2]
[363768650,1748866253476,-420.0,0.00019315,2]
[363768651,1748866253486,-420.0,0.00019315,2]
[363768654,1748866253496,-420.0,0.00019315,2]
[363768656,1748866253505,-464.12057613,0.00019315,2]
[363768658,1748866253515,-2346.62,0.00019315,2]
[363768659,1748866253524,-420.0,0.00019315,2]
[363768661,1748866253534,-420.0,0.00019315,2]
[363768663,1748866253545,-422.41322125,0.00019315,2]
[363768665,1748866253554,-420.0,0.00019315,2]
[363768667,1748866253568,-420.0,0.00019315,2]
[363768669,1748866253578,-2394.9,0.00019315,2]
[363768671,1748866253588,-420.0,0.00019315,2]
[363768673,1748866253597,-446.96735964,0.00019315,2]
[363768675,1748866253606,-420.0,0.00019315,2]
[363768677,1748866253615,-420.0,0.00019315,2]
[363768679,1748866253625,-420.0,0.00019315,2]
[363768681,1748866253634,-1297.39,0.00019315,2]
[363768683,1748866253645,-429.15070561,0.00019315,2]
[363768685,1748866253654,-422.33685365,0.00019315,2]
[363768687,1748866253664,-420.0,0.00019315,2]
[363768689,1748866253674,-420.0,0.00019315,2]
[363768691,1748866253683,-420.0,0.00019315,2]
[363768693,1748866253692,-1297.67,0.00019315,2]
[363768695,1748866253701,-420.0,0.00019315,2]
[363768697,1748866253711,-420.0,0.00019315,2]
[363768699,1748866253720,-420.0,0.00019315,2]
[363768701,1748866253730,-420.0,0.00019315,2]
[363768703,1748866253739,-420.0,0.00019315,2]
[363768705,1748866253749,-420.0,0.00019315,2]
[363768707,1748866253758,-420.0,0.00019315,2]
[363768709,1748866253768,-420.0,0.00019315,2]
[363768711,1748866253779,-420.0,0.00019315,2]
[363768713,1748866253789,-420.0,0.00019315,2]
[363768715,1748866253799,-420.0,0.00019315,2]
[363768717,1748866253810,-420.0,0.00019315,2]
[363768719,1748866253819,-420.0,0.00019315,2]
[363768721,1748866253829,-420.0,0.00019315,2]
[363768723,1748866253839,-420.0,0.00019315,2]
[363768725,1748866253848,-437.92901336,0.00019315,2]
[363768727,1748866253858,-420.0,0.00019315,2]
[363768729,1748866253868,-420.0,0.00019315,2]
[363768731,1748866253879,-420.0,0.00019315,2]
[363768733,1748866253890,-420.0,0.00019315,2]
[363768735,1748866253900,-420.0,0.00019315,2]
[363768737,1748866253909,-1000.0,0.00019315,2]
[363768739,1748866253918,-420.0,0.00019315,2]
[363768741,1748866253927,-1991.82,0.00019315,2]
[363768743,1748866253937,-420.0,0.00019315,2]
[363768745,1748866253947,-2432.56884,0.00019315,2]
[363768747,1748866253956,-420.0,0.00019315,2]
[363768749,1748866253966,-420.0,0.00019315,2]
[363768751,1748866253975,-420.0,0.00019315,2]
[363768753,1748866253985,-420.0,0.00019315,2]
[363768755,1748866253994,-420.0,0.00019315,2]
[363768757,1748866254003,-420.0,0.00019315,2]
[363768759,1748866254013,-420.0,0.00019315,2]
[363768761,1748866254022,-524.97,0.00019315,2]
[363768763,1748866254032,-589.22,0.00019315,2]
[363768765,1748866254041,-430.1185272,0.00019315,2]
[363768767,1748866254052,-420.0,0.00019315,2]
[363768769,1748866254063,-420.0,0.00019315,2]
[363768771,1748866254073,-171.90210052,0.00019315,2]
[363768773,1748866254082,-420.0,0.00019315,2]
[363768775,1748866254092,-420.0,0.00019315,2]
[363768776,1748866254101,-420.0,0.00019315,2]
[363768778,1748866254111,-420.0,0.00019315,2]
[363768780,1748866254120,-420.0,0.00019315,2]
[363768783,1748866254132,-420.0,0.00019315,2]
[363768785,1748866254142,-420.0,0.00019315,2]
[363768786,1748866254152,-1101.85,0.00019315,2]
[363768788,1748866254163,-1001.24,0.00019315,2]